[Event "EYTCC U18 Open 2019"]
[Site "Pardubice"]
[Date "2019.07.16"]
[Round "6.11"]
[White "Grieve, Harry"]
[Black "Rozen, Eytan"]
[Result "1-0"]
[ECO "B12"]
[WhiteElo "2235"]
[BlackElo "2260"]
[Annotator "NA"]
[PlyCount "109"]
[EventDate "2019.07.11"]
[EventType "swiss"]
[EventCountry "CZE"]
[SourceTitle "playchess.com"]
[Source "ChessBase"]
[SourceQuality "1"]
[WhiteTeam "England"]
[BlackTeam "Israel"]
[WhiteTeamCountry "ENG"]
[BlackTeamCountry "ISR"]
[TimeControl "40/5400+30:1800+30"]

1. e4 {[%emt 0:00:00]} c6 {[%emt 0:00:00]} 2. d4 {[%emt 0:00:00]} d5 {[%emt 0:00:06]} 3. e5 {[%emt 0:00:14]} Bf5 {[%emt 0:00:21]} 4. h4 {[%emt 0:00:18]} h6 {[%emt 0:01:28]} 5. g4 {[%emt 0:00:10]} Be4 {[%emt 0:00:28]} 6. f3 {[%emt 0:00:12]} Bg6 {[%emt 0:00:07]} 7. h5 {[%emt 0:00:07]} Bh7 {[%emt 0:00:20]} 8. e6 {[%emt 0:00:05]} fxe6 {[%emt 0:02:31]} 9. Bd3 {[%emt 0:00:18]} Bxd3 {[%emt 0:01:06]} 10. Qxd3 {[%emt 0:00:06]} Qd6 {[%emt 0:05:31]} 11. f4 {[%emt 0:00:12]} Nd7 {[%emt 0:00:43]} 12. Nf3 {[%emt 0:00:06]} O-O-O {[%emt 0:03:54]} 13. Ne5 {[%emt 0:00:31]} Nxe5 {[%emt 0:00:24]} 14. fxe5 {[%emt 0:00:03]} Qd7 {[%emt 0:00:18]} 15. Nc3 {[%emt 0:05:31]} Nf6 {[%emt 0:00:22]} 16. exf6 {[%emt 0:00:04]} exf6 {[%emt 0:00:02]} 17. Ne2 {[%emt 0:08:52]} c5 {[%emt 0:02:44]} 18. c3 {[%emt 0:07:28]} e5 {[%emt 0:02:37]} 19. Qf5 {[%emt 0:00:32]} Bd6 {[%emt 0:00:22]} 20. Be3 {[%emt 0:07:46]} exd4 {[%emt 0:06:46]} 21. cxd4 {[%emt 0:00:12]} c4 {[%emt 0:03:35]} 22. Nc3 {[%emt 0:03:24]} Bb4 {[%emt 0:05:41]} 23. O-O {[%emt 0:03:54]} Bxc3 {[%emt 0:01:25]} 24. bxc3 {[%emt 0:00:56]} Rhe8 {[%emt 0:00:11]} 25. Rae1 {[%emt 0:01:12]} Re4 {[%emt 0:01:10]} 26. Bf4 {[%emt 0:01:13]} Rde8 {[%emt 0:00:09]} 27. Rxe4 {[%emt 0:00:52]} Rxe4 {[%emt 0:00:01]} 28. Kg2 {[%emt 0:02:13]} Qe6 {[%emt 0:12:42]} 29. Kf3 {[%emt 0:04:05]} Kd7 {[%emt 0:05:37]} 30. Bd2 {[%emt 0:09:54]} Re2 {[%emt 0:18:23]} 31. Rf2 {[%emt 0:03:27]} Re4 {[%emt 0:00:34]} 32. Qxe6+ {[%emt 0:01:09]} Rxe6 {[%emt 0:00:11]} 33. Kf4 {[%emt 0:00:41]} Ke8 {[%emt 0:06:49]} 34. Kf5 {[%emt 0:02:12]} Kf7 {[%emt 0:00:24]} 35. Bf4 {[%emt 0:00:44]} Rb6 {[%emt 0:02:12]} 36. Re2 {[%emt 0:03:56]} a6 {[%emt 0:06:22]} 37. a3 {[%emt 0:02:44]} Rc6 {[%emt 0:03:27]} 38. a4 {[%emt 0:01:54]} b6 {[%emt 0:04:18]} 39. Re1 {[%emt 0:02:54]} b5 {[%emt 0:00:27]} 40. axb5 {[%emt 0:00:06]} axb5 {[%emt 0:00:02]} 41. Ra1 {[%emt 0:30:28]} Re6 {[%emt 0:31:51]} 42. Ra7+ {[%emt 0:00:59]} Re7 {[%emt 0:00:00]} 43. Rxe7+ {[%emt 0:00:09]} Kxe7 {[%emt 0:00:02]} 44. Kg6 {[%emt 0:00:07]} Kf8 {[%emt 0:00:02]} 45. Bd6+ {[%emt 0:00:07]} Kg8 {[%emt 0:00:03]} 46. Bb4 {[%emt 0:00:04]} Kh8 {[%emt 0:00:26]} 47. Kf7 {[%emt 0:00:15]} Kh7 {[%emt 0:00:08]} 48. Bf8 {[%emt 0:00:06]} Kh8 {[%emt 0:00:34]} 49. Bxg7+ {[%emt 0:00:07]} Kh7 {[%emt 0:00:02]} 50. Bxf6 {[%emt 0:00:18]} b4 {[%emt 0:00:06]} 51. cxb4 {[%emt 0:00:03]} c3 {[%emt 0:00:04]} 52. Be5 {[%emt 0:00:04]} c2 {[%emt 0:00:05]} 53. Bf4 {[%emt 0:00:03]} Kh8 {[%emt 0:01:05]} 54. Bc1 {[%emt 0:00:13]} Kh7 {[%emt 0:00:08]} 55. b5 {[%emt 0:00:02]} 1-0

[Event "EYTCC U18 Open 2019"]
[Site "Pardubice"]
[Date "2019.07.16"]
[Round "6.12"]
[White "Gleizer, Adar"]
[Black "Stoyanov, Viktor"]
[Result "0-1"]
[ECO "B51"]
[WhiteElo "1748"]
[BlackElo "2198"]
[Annotator "NA"]
[PlyCount "64"]
[EventDate "2019.07.11"]
[EventType "swiss"]
[EventCountry "CZE"]
[SourceTitle "playchess.com"]
[Source "ChessBase"]
[SourceQuality "1"]
[WhiteTeam "Israel"]
[BlackTeam "England"]
[WhiteTeamCountry "ISR"]
[BlackTeamCountry "ENG"]
[TimeControl "40/5400+30:1800+30"]

1. e4 {[%emt 0:00:00]} c5 {[%emt 0:00:00]} 2. Nf3 {[%emt 0:00:00]} d6 {[%emt 0:00:00]} 3. Bb5+ {[%emt 0:00:44]} Nd7 {[%emt 0:00:00]} 4. Ba4 {[%emt 0:00:23]} Ngf6 {[%emt 0:00:19]} 5. O-O {[%emt 0:00:39]} a6 {[%emt 0:00:56]} 6. c4 {[%emt 0:00:28]} Nxe4 {[%emt 0:00:26]} 7. Re1 {[%emt 0:01:21]} Nef6 {[%emt 0:00:08]} 8. d4 {[%emt 0:00:11]} cxd4 {[%emt 0:01:32]} 9. Nxd4 {[%emt 0:00:27]} e6 {[%emt 0:00:23]} 10. Bf4 {[%emt 0:19:30]} Qa5 {[%emt 0:03:41]} 11. Nc3 {[%emt 0:10:23]} Be7 {[%emt 0:00:30]} 12. Nd5 {[%emt 0:35:21]} Nxd5 {[%emt 0:01:12]} 13. cxd5 {[%emt 0:00:08]} O-O {[%emt 0:02:54]} 14. dxe6 {[%emt 0:01:08]} Nc5 {[%emt 0:00:42]} 15. exf7+ {[%emt 0:00:37]} Rxf7 {[%emt 0:00:06]} 16. Bb3 {[%emt 0:00:08]} Nxb3 {[%emt 0:00:32]} 17. Qxb3 {[%emt 0:00:15]} d5 {[%emt 0:00:54]} 18. Rac1 {[%emt 0:01:52]} Bf8 {[%emt 0:16:05]} 19. Bg3 {[%emt 0:06:57]} Bg4 {[%emt 0:04:25]} 20. h3 {[%emt 0:00:44]} Bh5 {[%emt 0:00:23]} 21. Re3 {[%emt 0:06:40]} Rd8 {[%emt 0:05:09]} 22. Rec3 {[%emt 0:02:09]} Re8 {[%emt 0:00:53]} 23. Rc7 {[%emt 0:01:39]} Re1+ {[%emt 0:00:35]} 24. Kh2 {[%emt 0:00:09]} Rxc1 {[%emt 0:00:20]} 25. Rxc1 {[%emt 0:00:10]} Qd2 {[%emt 0:01:22]} 26. Qc3 {[%emt 0:00:42]} Qh6 {[%emt 0:00:17]} 27. Re1 {[%emt 0:01:10]} Rd7 {[%emt 0:04:13]} 28. Qc8 {[%emt 0:02:04]} Rf7 {[%emt 0:00:20]} 29. Qd8 {[%emt 0:00:42]} Qd2 {[%emt 0:03:03]} 30. Re8 {[%emt 0:00:22]} Qxd4 {[%emt 0:00:10]} 31. Bd6 {[%emt 0:00:21]} Qf6 {[%emt 0:00:10]} 32. Bxf8 {[%emt 0:01:04]} Qxd8 {[%emt 0:00:06]} 0-1

[Event "EYTCC U18 Open 2019"]
[Site "Pardubice"]
[Date "2019.07.16"]
[Round "6.13"]
[White "Miesbauer, Jan"]
[Black "Ozsakallioglu, Okan"]
[Result "1/2-1/2"]
[ECO "E62"]
[WhiteElo "2409"]
[BlackElo "2243"]
[Annotator "NA"]
[PlyCount "60"]
[EventDate "2019.07.11"]
[EventType "swiss"]
[EventCountry "CZE"]
[SourceTitle "playchess.com"]
[Source "ChessBase"]
[SourceQuality "1"]
[WhiteTeam "Czech Republic"]
[BlackTeam "Turkey"]
[WhiteTeamCountry "CZE"]
[BlackTeamCountry "TUR"]
[TimeControl "40/5400+30:1800+30"]

1. d4 {[%emt 0:00:00]} Nf6 {[%emt 0:00:00]} 2. c4 {[%emt 0:00:00]} g6 {[%emt 0:00:00]} 3. Nc3 {[%emt 0:00:01]} Bg7 {[%emt 0:00:00]} 4. Nf3 {[%emt 0:00:43]} O-O {[%emt 0:00:00]} 5. g3 {[%emt 0:02:13]} d6 {[%emt 0:00:13]} 6. Bg2 {[%emt 0:00:05]} c6 {[%emt 0:00:04]} 7. O-O {[%emt 0:00:20]} Qa5 {[%emt 0:00:03]} 8. h3 {[%emt 0:01:20]} Nbd7 {[%emt 0:01:21]} 9. e4 {[%emt 0:01:07]} e5 {[%emt 0:00:19]} 10. Be3 {[%emt 0:00:15]} Nb6 {[%emt 0:07:18]} 11. Qd3 {[%emt 0:03:12]} exd4 {[%emt 0:01:56]} 12. Nxd4 {[%emt 0:02:19]} Qa6 {[%emt 0:00:05]} 13. b3 {[%emt 0:01:20]} d5 {[%emt 0:02:16]} 14. exd5 {[%emt 0:03:35]} Nbxd5 {[%emt 0:10:23]} 15. Rad1 {[%emt 0:27:14]} Nxe3 {[%emt 0:03:52]} 16. Qxe3 {[%emt 0:02:25]} Re8 {[%emt 0:00:13]} 17. Qf4 {[%emt 0:01:48]} Qa5 {[%emt 0:00:55]} 18. Na4 {[%emt 0:00:40]} Bd7 {[%emt 0:04:28]} 19. Qd2 {[%emt 0:01:07]} Qh5 {[%emt 0:11:11]} 20. g4 {[%emt 0:05:08]} Nxg4 {[%emt 0:02:21]} 21. hxg4 {[%emt 0:00:44]} Bxg4 {[%emt 0:00:29]} 22. f3 {[%emt 0:00:54]} Be5 {[%emt 0:06:56]} 23. Rfe1 {[%emt 0:00:56]} Bxd4+ {[%emt 0:11:10]} 24. Qxd4 {[%emt 0:00:09]} Bxf3 {[%emt 0:00:04]} 25. Bxf3 {[%emt 0:01:06]} Qxf3 {[%emt 0:01:24]} 26. Qf2 {[%emt 0:00:10]} Qg4+ {[%emt 0:00:12]} 27. Qg2 {[%emt 0:00:30]} Qh4 {[%emt 0:00:05]} 28. Qf2 {[%emt 0:00:34]} Qg4+ {[%emt 0:01:06]} 29. Qg2 {[%emt 0:00:16]} Qh4 {[%emt 0:00:45]} 30. Qf2 {[%emt 0:00:05]} Qg4+ {[%emt 0:00:41]} 1/2-1/2

[Event "EYTCC U18 Open 2019"]
[Site "Pardubice"]
[Date "2019.07.16"]
[Round "6.14"]
[White "Ozsakallioglu, Akin"]
[Black "Zeman, Matyas"]
[Result "0-1"]
[ECO "C03"]
[WhiteElo "1901"]
[BlackElo "2275"]
[Annotator "NA"]
[PlyCount "82"]
[EventDate "2019.07.11"]
[EventType "swiss"]
[EventCountry "CZE"]
[SourceTitle "playchess.com"]
[Source "ChessBase"]
[SourceQuality "1"]
[WhiteTeam "Turkey"]
[BlackTeam "Czech Republic"]
[WhiteTeamCountry "TUR"]
[BlackTeamCountry "CZE"]
[TimeControl "40/5400+30:1800+30"]

1. e4 {[%emt 0:00:00]} e6 {[%emt 0:00:00]} 2. d4 {[%emt 0:00:00]} d5 {[%emt 0:00:00]} 3. Nd2 {[%emt 0:00:00]} a6 {[%emt 0:00:01]} 4. Ngf3 {[%emt 0:01:01]} c5 {[%emt 0:00:13]} 5. exd5 {[%emt 0:05:01]} exd5 {[%emt 0:00:06]} 6. dxc5 {[%emt 0:00:09]} Bxc5 {[%emt 0:00:04]} 7. Nb3 {[%emt 0:00:25]} Bb6 {[%emt 0:00:24]} 8. Bd3 {[%emt 0:01:43]} Qe7+ {[%emt 0:04:19]} 9. Be2 {[%emt 0:04:17]} Nf6 {[%emt 0:02:13]} 10. Bg5 {[%emt 0:02:53]} Bxf2+ {[%emt 0:02:01]} 11. Kxf2 {[%emt 0:00:04]} Ne4+ {[%emt 0:00:05]} 12. Kf1 {[%emt 0:00:22]} Nxg5 {[%emt 0:00:07]} 13. Qxd5 {[%emt 0:00:12]} Ne6 14. Kf2 {[%emt 0:09:24]} Nd7 {[%emt 0:17:09]} 15. Rad1 {[%emt 0:03:25]} Nf6 {[%emt 0:00:41]} 16. Qa5 {[%emt 0:16:10]} Ng4+ {[%emt 0:23:19]} 17. Kg1 {[%emt 0:02:32]} O-O {[%emt 0:02:05]} 18. Bd3 {[%emt 0:11:15]} b5 {[%emt 0:08:11]} 19. Qb6 {[%emt 0:07:21]} Bb7 {[%emt 0:01:39]} 20. h3 {[%emt 0:06:03]} Nf6 {[%emt 0:00:28]} 21. Qf2 {[%emt 0:00:26]} Qc7 {[%emt 0:08:51]} 22. Nbd4 {[%emt 0:05:13]} Nc5 {[%emt 0:02:57]} 23. c3 {[%emt 0:02:58]} Rad8 {[%emt 0:04:55]} 24. Qh4 {[%emt 0:03:14]} Bxf3 {[%emt 0:07:12]} 25. gxf3 {[%emt 0:00:10]} Nxd3 {[%emt 0:00:06]} 26. Rxd3 {[%emt 0:00:12]} Rfe8 {[%emt 0:00:35]} 27. Kf2 {[%emt 0:07:23]} Nd5 {[%emt 0:08:14]} 28. Rg1 {[%emt 0:04:19]} Nf4 {[%emt 0:02:12]} 29. Rd2 {[%emt 0:00:05]} Qe5 {[%emt 0:00:32]} 30. Rgd1 {[%emt 0:01:01]} Qe3+ {[%emt 0:01:25]} 31. Kg3 {[%emt 0:01:49]} Ng6 {[%emt 0:02:56]} 32. Qg4 {[%emt 0:00:41]} h5 {[%emt 0:00:18]} 33. Qf5 {[%emt 0:01:31]} Re5 {[%emt 0:00:49]} 34. Qd3 {[%emt 0:01:10]} Qf4+ {[%emt 0:00:24]} 35. Kg2 {[%emt 0:00:33]} Nh4+ {[%emt 0:00:34]} 36. Kh1 {[%emt 0:00:08]} Qg3 {[%emt 0:00:11]} 37. Qf1 {[%emt 0:00:16]} Rde8 {[%emt 0:00:13]} 38. Rf2 {[%emt 0:00:41]} Ng6 {[%emt 0:02:34]} 39. Ne2 {[%emt 0:02:06]} Qh4 {[%emt 0:00:25]} 40. f4 {[%emt 0:01:31]} Re3 {[%emt 0:00:14]} 41. Kh2 {[%emt 0:30:11]} Rxh3+ {[%emt 0:30:13]} 0-1

[Event "EYTCC U18 Open 2019"]
[Site "Pardubice"]
[Date "2019.07.16"]
[Round "6.15"]
[White "Svanda, Ondrej"]
[Black "Ozdemir, Serhan Berat"]
[Result "1-0"]
[ECO "B42"]
[WhiteElo "2234"]
[BlackElo "1985"]
[Annotator "ChessBase"]
[PlyCount "149"]
[EventDate "2019.07.11"]
[EventType "swiss"]
[EventCountry "CZE"]
[SourceTitle "playchess.com"]
[Source "ChessBase"]
[SourceQuality "1"]
[WhiteTeam "Czech Republic"]
[BlackTeam "Turkey"]
[WhiteTeamCountry "CZE"]
[BlackTeamCountry "TUR"]
[TimeControl "40/5400+30:1800+30"]

1. e4 {[%emt 0:00:00]} c5 {[%emt 0:00:00]} 2. Nf3 {[%emt 0:00:00]} e6 {[%emt 0:00:00]} 3. d4 {[%emt 0:00:00]} cxd4 {[%emt 0:00:00]} 4. Nxd4 {[%emt 0:00:00]} a6 {[%emt 0:00:00]} 5. Bd3 {[%emt 0:00:04]} Nf6 {[%emt 0:03:12]} 6. O-O {[%emt 0:00:21]} Qc7 {[%emt 0:01:07]} 7. Qe2 {[%emt 0:00:17]} d6 {[%emt 0:01:05]} 8. f4 {[%emt 0:00:30]} Nbd7 {[%emt 0:01:26]} 9. c4 {[%emt 0:02:56]} b6 {[%emt 0:04:14]} 10. b3 {[%emt 0:03:05]} Bb7 {[%emt 0:00:27]} 11. Bb2 {[%emt 0:01:02]} Be7 {[%emt 0:09:54]} 12. Nc3 {[%emt 0:00:11]} O-O {[%emt 0:00:40]} 13. Rae1 {[%emt 0:00:26]} Rfd8 {[%emt 0:06:20]} 14. Kh1 {[%emt 0:05:18]} Rac8 {[%emt 0:02:13]} 15. Bb1 {[%emt 0:06:32]} Bf8 {[%emt 0:03:28]} 16. Nf3 {[%emt 0:12:21]} g6 {[%emt 0:11:03]} 17. Ng5 {[%emt 0:08:46]} Bg7 {[%emt 0:04:29]} 18. e5 {[%emt 0:07:12]} Ne8 {[%emt 0:01:51]} 19. Nd5 {[%emt 0:07:51]} exd5 {[%emt 0:05:21]} 20. e6 {[%emt 0:00:01]} Ndf6 {[%emt 0:01:57]} 21. exf7+ {[%emt 0:08:41]} Kh8 {[%emt 0:00:04]} 22. Qe6 {[%emt 0:04:00]} Qd7 {[%emt 0:03:19]} 23. fxe8=Q+ {[%emt 0:09:10]} Rxe8 {[%emt 0:00:20]} 24. Qxd7 {[%emt 0:00:12]} Nxd7 {[%emt 0:00:02]} 25. Rxe8+ {[%emt 0:00:56]} Rxe8 {[%emt 0:00:01]} 26. Nf7+ {[%emt 0:00:11]} Kg8 {[%emt 0:00:07]} 27. Nxd6 {[%emt 0:00:11]} Rb8 {[%emt 0:03:05]} 28. Bxg7 {[%emt 0:06:34]} Kxg7 {[%emt 0:00:00]} 29. Re1 {[%emt 0:00:44]} Kf6 {[%emt 0:00:54]} 30. Nxb7 {[%emt 0:00:15]} Rxb7 {[%emt 0:00:01]} 31. cxd5 {[%emt 0:00:05]} Rc7 {[%emt 0:00:44]} 32. g3 {[%emt 0:02:13]} Rc5 {[%emt 0:00:19]} 33. Be4 {[%emt 0:01:16]} Ra5 {[%emt 0:01:35]} 34. Re2 {[%emt 0:00:13]} Rc5 {[%emt 0:02:32]} 35. Kg2 {[%emt 0:00:30]} Rc3 {[%emt 0:00:12]} 36. Rc2 {[%emt 0:01:14]} Re3 {[%emt 0:00:16]} 37. Bf3 {[%emt 0:00:19]} Nc5 {[%emt 0:01:15]} 38. Rd2 {[%emt 0:01:52]} Ke7 {[%emt 0:01:08]} 39. Re2 {[%emt 0:06:11]} Rxe2+ {[%emt 0:00:01]} 40. Bxe2 {[%emt 0:00:04]} b5 {[%emt 0:00:04]} 41. Kf3 {[%emt 0:32:56]} Kd6 {[%emt 0:31:40]} 42. Ke3 {[%emt 0:01:26]} Kxd5 {[%emt 0:00:13]} 43. g4 {[%emt 0:01:17]} Nd7 {[%emt 0:05:48]} 44. a3 {[%emt 0:00:00]} Nf6 {[%emt 0:00:00]} 45. Kd3 {[%emt 0:00:00]} Kc5 {[%emt 0:00:00]} 46. b4+ {[%emt 0:00:00]} Kd6 {[%emt 0:00:00]} 47. Bf3 {[%emt 0:00:00]} Nd7 {[%emt 0:00:00]} 48. Bb7 {[%emt 0:00:00]} a5 {[%emt 0:00:00]} 49. Kd4 {[%emt 0:00:00]} axb4 {[%emt 0:00:00]} 50. axb4 {[%emt 0:00:00]} Nf6 {[%emt 0:00:00]} 51. Bf3 {[%emt 0:00:00]} Ne8 {[%emt 0:00:00]} 52. Bd1 {[%emt 0:00:00]} Nf6 {[%emt 0:00:00]} 53. Bf3 {[%emt 0:00:00]} Ne8 {[%emt 0:00:00]} 54. h4 {[%emt 0:00:00]} Nc7 {[%emt 0:00:00]} 55. Be4 {[%emt 0:00:00]} Na6 {[%emt 0:00:00]} 56. g5 {[%emt 0:00:00]} Nxb4 {[%emt 0:00:54]} 57. f5 {[%emt 0:00:00]} gxf5 {[%emt 0:00:18]} 58. Bxf5 {[%emt 0:00:00]} Nc6+ {[%emt 0:01:13]} 59. Ke4 {[%emt 0:00:00]} Ne7 {[%emt 0:04:32]} 60. Bxh7 {[%emt 0:00:00]} Ke6 {[%emt 0:00:02]} 61. Kf4 {[%emt 0:00:00]} Nd5+ {[%emt 0:00:25]} 62. Kf3 {[%emt 0:00:00]} Kf7 {[%emt 0:01:48]} 63. Bd3 {[%emt 0:00:00]} Ne7 {[%emt 0:08:22]} 64. Bxb5 {[%emt 0:00:00]} Kg7 {[%emt 0:00:31]} 65. Bd3 {[%emt 0:00:00]} Ng8 {[%emt 0:00:35]} 66. Kf4 {[%emt 0:01:56]} Nf6 {[%emt 0:05:51]} 67. Be4 {[%emt 0:00:49]} Ng8 {[%emt 0:00:31]} 68. h5 {[%emt 0:01:13]} Nh6 {[%emt 0:00:16]} 69. Bd5 {[%emt 0:00:15]} Kh7 {[%emt 0:00:34]} 70. Be6 {[%emt 0:00:08]} Kg7 {[%emt 0:00:01]} 71. Ke5 {[%emt 0:00:28]} Kh8 {[%emt 0:00:51]} 72. Kf6 {[%emt 0:01:17]} Kh7 {[%emt 0:00:03]} 73. Ke7 {[%emt 0:01:44]} Kg7 {[%emt 0:02:08]} 74. g6 {[%emt 0:00:43]} Kh8 {[%emt 0:00:35]} 75. Kf6 {[%emt 0:00:01]} 1-0

[Event "EYTCC U18 Open 2019"]
[Site "Pardubice"]
[Date "2019.07.16"]
[Round "6.16"]
[White "YAVUZ, Sevki Batuhan"]
[Black "Mica, Marek"]
[Result "0-1"]
[ECO "E32"]
[WhiteElo "1647"]
[BlackElo "2222"]
[Annotator "NA"]
[PlyCount "102"]
[EventDate "2019.07.11"]
[EventType "swiss"]
[EventCountry "CZE"]
[SourceTitle "playchess.com"]
[Source "ChessBase"]
[SourceQuality "1"]
[BlackTeam "Czech Republic"]
[BlackTeamCountry "CZE"]
[TimeControl "40/5400+30:1800+30"]

1. d4 {[%emt 0:00:00]} Nf6 {[%emt 0:00:00]} 2. c4 {[%emt 0:00:00]} e6 {[%emt 0:00:00]} 3. Nc3 {[%emt 0:00:00]} Bb4 {[%emt 0:00:03]} 4. Qc2 {[%emt 0:00:03]} O-O {[%emt 0:00:32]} 5. e4 {[%emt 0:00:30]} d6 {[%emt 0:00:36]} 6. Nf3 {[%emt 0:01:39]} Nc6 {[%emt 0:03:10]} 7. a3 {[%emt 0:01:54]} Bxc3+ {[%emt 0:00:29]} 8. bxc3 {[%emt 0:00:08]} e5 {[%emt 0:00:16]} 9. d5 {[%emt 0:01:27]} Nb8 {[%emt 0:01:50]} 10. h3 {[%emt 0:02:42]} b6 {[%emt 0:01:51]} 11. Be3 {[%emt 0:02:25]} Ba6 {[%emt 0:01:11]} 12. Bd3 {[%emt 0:02:42]} Nbd7 {[%emt 0:00:34]} 13. Qa4 {[%emt 0:02:21]} Bb7 {[%emt 0:01:39]} 14. O-O {[%emt 0:03:22]} Qe7 {[%emt 0:02:22]} 15. Qc2 {[%emt 0:05:56]} Nc5 {[%emt 0:01:05]} 16. Bxc5 {[%emt 0:00:12]} dxc5 {[%emt 0:00:16]} 17. Qe2 {[%emt 0:01:39]} Ne8 {[%emt 0:00:35]} 18. Nd2 {[%emt 0:01:59]} Nd6 {[%emt 0:01:23]} 19. Rae1 {[%emt 0:04:29]} Rae8 {[%emt 0:02:34]} 20. f4 {[%emt 0:03:13]} f6 {[%emt 0:01:14]} 21. g3 {[%emt 0:05:48]} Qd7 {[%emt 0:02:36]} 22. Qg4 {[%emt 0:02:49]} Qa4 {[%emt 0:12:36]} 23. Qd1 {[%emt 0:10:39]} Qd7 {[%emt 0:10:43]} 24. Kh2 {[%emt 0:00:26]} Bc8 {[%emt 0:02:29]} 25. f5 {[%emt 0:03:52]} g5 {[%emt 0:02:59]} 26. h4 {[%emt 0:04:37]} gxh4 {[%emt 0:03:41]} 27. gxh4 {[%emt 0:00:17]} Kh8 {[%emt 0:00:19]} 28. Rg1 {[%emt 0:05:00]} Rg8 {[%emt 0:00:07]} 29. Qh5 {[%emt 0:03:29]} Rxg1 {[%emt 0:02:09]} 30. Rxg1 {[%emt 0:00:07]} Rg8 {[%emt 0:00:39]} 31. Qh6 {[%emt 0:06:49]} Rxg1 {[%emt 0:02:57]} 32. Kxg1 {[%emt 0:00:08]} Qe7 {[%emt 0:01:12]} 33. Nf1 {[%emt 0:04:35]} Nf7 {[%emt 0:01:57]} 34. Qh5 {[%emt 0:00:41]} Qf8 {[%emt 0:00:34]} 35. Kf2 {[%emt 0:01:09]} Bd7 {[%emt 0:00:43]} 36. Ne3 {[%emt 0:00:52]} Be8 {[%emt 0:00:45]} 37. Qf3 {[%emt 0:02:49]} Nd6 {[%emt 0:00:33]} 38. Kg3 {[%emt 0:02:22]} Qg7+ {[%emt 0:02:19]} 39. Qg4 {[%emt 0:00:40]} Qh6 {[%emt 0:00:25]} 40. Qf3 {[%emt 0:01:02]} Bh5 {[%emt 0:01:13]} 41. Qf2 {[%emt 0:30:22]} Qf8 {[%emt 0:32:57]} 42. Kh3 {[%emt 0:00:55]} Qe8 {[%emt 0:00:50]} 43. Qc2 {[%emt 0:00:51]} Qd7 {[%emt 0:11:04]} 44. Kg3 {[%emt 0:03:58]} Qg7+ {[%emt 0:01:09]} 45. Kh2 {[%emt 0:04:16]} Bf3 {[%emt 0:01:09]} 46. Qa4 {[%emt 0:00:00]} Qh6 {[%emt 0:00:00]} 47. Nf1 {[%emt 0:00:00]} Qxh4+ {[%emt 0:00:00]} 48. Kg1 {[%emt 0:00:00]} Qg4+ {[%emt 0:00:00]} 49. Kf2 {[%emt 0:00:00]} Bxe4 {[%emt 0:00:00]} 50. Bxe4 {[%emt 0:00:00]} Nxe4+ {[%emt 0:00:00]} 51. Ke1 {[%emt 0:00:00]} Qh4+ {[%emt 0:00:00]} 0-1